bitfinex/quotes_ETHUSD_20250925
["timestamp","ask_amount","ask_price","bid_price","bid_amount"]
[1758817706172,11.949167,3979.0,3978.4,6.6256]
[1758817706678,0.3165,3978.9,3977.5,0.2469]
[1758817706890,0.3165,3978.9,3975.9,2.51511042]
[1758817706891,0.1256,3978.6,3977.9,0.1256]
[1758817707096,3.0,3978.4,3977.6,1.602]
[1758817707291,2.63936316,3978.1,3977.6,1.602]
[1758817707500,13.10018,3978.0,3977.6,1.602]
[1758817707694,13.82596,3977.6,3977.3,4.405]
[1758817707894,10.335686,3977.3,3977.0,0.1256]
[1758817708203,2.51419615,3977.5,3977.0,0.1256]
[1758817708390,16.3401659,3977.4,3977.0,0.1256]
[1758817708701,2.398,3977.3,3977.2,0.002]
[1758817708902,6.656099,3977.5,3977.2,0.002]
[1758817709102,6.815099,3977.5,3977.2,0.002]
[1758817709317,2.51421156,3977.4,3977.2,0.002]
[1758817709518,16.34022847,3977.3,3977.2,0.002]
[1758817709800,16.55412847,3977.3,3977.2,0.002]
[1758817710193,14.03986,3977.3,3977.2,0.002]
[1758817710394,0.2139,3977.3,3977.2,0.002]
[1758817710710,14.03986,3977.3,3977.2,0.002]
[1758817710905,13.364488,3977.3,3977.2,0.002]
[1758817711106,6.607532,3977.3,3977.2,0.002]
[1758817711311,6.332323,3977.3,3977.2,0.002]
[1758817711508,6.91695942,3977.8,3977.2,0.002]
[1758817711708,5.955031,3977.7,3977.2,0.002]
[1758817712005,10.651535,3977.6,3977.2,0.002]
[1758817712212,8.975985,3977.5,3977.2,0.002]
[1758817712372,2.473,3977.4,3977.2,0.002]
[1758817712578,2.63969043,3977.6,3977.2,0.002]
[1758817712803,8.280558,3977.5,3977.2,0.002]
[1758817713009,6.519745,3977.5,3977.2,0.002]
[1758817713217,0.1256,3977.6,3977.2,0.002]
[1758817713527,8.62028905,3978.0,3977.2,0.002]
[1758817713528,7.19,3977.5,3977.4,2.63980525]
[1758817713734,7.19,3977.9,3977.5,2.51412427]
[1758817713892,7.19,3977.9,3977.7,2.51397311]
[1758817714097,0.1256,3978.3,3977.7,7.03857311]
[1758817714098,7.19,3977.8,3977.7,7.03857311]
[1758817714292,7.19,3977.8,3977.7,4.5246]
[1758817714624,7.3156,3978.3,3977.7,4.5246]
[1758817714797,7.19,3978.3,3977.8,4.60890335]
[1758817714997,7.6129,3979.1,3977.2,0.002]
[1758817714998,9.235756,3977.8,3977.2,0.002]
[1758817715332,4.411446,3977.7,3977.2,0.002]
[1758817715546,3.028911,3977.6,3977.2,0.002]
[1758817715829,3.0,3978.0,3977.2,0.002]
[1758817716035,6.930667,3977.9,3977.3,0.2469]
[1758817716234,7.299645,3977.8,3977.3,0.2469]
[1758817716442,7.434515,3977.9,3977.3,0.2469]
[1758817716740,8.95667,3977.8,3977.3,0.72884824]
[1758817717041,2.51380576,3978.1,3977.3,1.17104824]
[1758817717245,0.2139,3978.2,3977.4,2.51416171]
[1758817717397,4.406,3978.5,3977.6,2.5140717]
[1758817717594,8.23241035,3978.4,3977.3,1.17104824]
[1758817717838,6.436869,3978.3,3977.3,1.17104824]
[1758817718012,2.51376493,3978.1,3977.3,1.17104824]
[1758817718207,2.51389909,3977.9,3977.4,4.403]
[1758817718424,12.152837,3977.8,3977.4,6.498]
[1758817718597,7.744538,3977.8,3977.4,6.498]
[1758817718801,6.355956,3977.7,3977.4,6.498]
[1758817719000,0.2139,3978.4,3977.5,4.403]
[1758817719001,9.800609,3978.0,3977.5,4.403]
[1758817719245,7.101014,3977.9,3977.5,4.403]
[1758817719442,2.51376455,3978.1,3977.2,2.5163275]
[1758817719443,6.636243,3977.8,3977.6,4.401]
[1758817719606,5.731263,3977.7,3977.6,4.401]
[1758817719823,11.752742,3978.0,3977.6,4.401]
[1758817720016,6.939071,3977.9,3977.6,4.401]
[1758817720200,10.943102,3978.0,3977.6,4.401]
[1758817720396,10.951162,3978.0,3977.6,4.401]
[1758817720601,10.951162,3978.0,3977.5,4.401]
[1758817721042,0.2139,3978.4,3977.6,0.457]
[1758817721245,2.206613,3978.3,3977.6,0.48214078]
[1758817721431,3.414968,3978.4,3977.6,0.457]
[1758817721631,2.51355689,3978.5,3977.6,2.97107388]
[1758817721946,2.51326935,3978.9,3977.7,0.71204015]
[1758817722123,2.884242,3978.8,3977.7,0.02514015]
[1758817722325,0.2139,3979.7,3977.8,0.6869]
[1758817722646,0.2139,3979.7,3977.5,4.401]
[1758817722647,13.82596,3979.7,3978.9,2.5132012]
[1758817722945,9.421291,3979.6,3979.0,4.398]
[1758817723155,2.72747028,3980.0,3979.0,4.398]
[1758817723156,2.51276575,3979.7,3979.0,4.398]
[1758817723311,4.09053,3979.6,3979.0,4.398]
[1758817723517,2.51270466,3979.8,3979.0,4.398]
[1758817723717,2.51286585,3979.6,3978.4,2.74346767]
[1758817724017,6.586723,3979.5,3978.8,2.51330002]
[1758817724347,3.45513107,3979.8,3978.8,2.7819]
[1758817724646,16.33872059,3979.7,3978.9,4.397]
[1758817724815,8.041572,3979.6,3978.9,6.492]
[1758817725016,12.787978,3979.7,3979.1,2.51313061]
[1758817725216,0.1256,3979.7,3979.2,0.02513067]
[1758817725453,0.001,3980.0,3979.6,0.1256]
[1758817725818,0.001,3980.0,3979.7,4.396]
[1758817726146,2.536628,3979.9,3979.7,4.396]
[1758817726316,2.536628,3979.9,3979.6,0.1256]
[1758817726515,2.536628,3979.9,3979.7,2.701]
[1758817726923,2.120544,3979.9,3979.7,2.701]
[1758817727151,2.120544,3979.9,3979.8,4.395]
[1758817727349,0.001,3980.0,3979.8,4.395]
[1758817727552,0.001,3980.0,3979.9,4.395]
[1758817727737,0.001,3980.0,3979.9,7.36462594]
[1758817727938,0.001,3980.0,3979.9,7.59352594]
[1758817728140,0.001,3980.0,3979.9,9.68852594]
[1758817728729,0.001,3980.0,3979.9,3.19952594]
[1758817728943,0.001,3980.0,3979.9,7.1809]
[1758817729142,0.001,3980.0,3979.9,10.66288454]
[1758817729541,0.001,3980.0,3979.9,1.6562586]
[1758817729851,0.001,3980.0,3979.6,0.6869]
[1758817730053,0.2149,3980.0,3978.7,0.457]
[1758817730254,5.165716,3979.9,3979.0,2.72704479]
[1758817730459,5.165716,3979.9,3979.0,2.51314479]
[1758817730754,5.165716,3979.9,3978.9,2.51324128]
[1758817730930,5.165716,3979.9,3979.0,6.501]
[1758817731256,3.568341,3979.9,3979.1,2.51310726]
[1758817731455,2.72751688,3980.0,3979.0,6.501]
[1758817731456,3.929072,3979.8,3979.0,6.501]
[1758817731754,0.2149,3980.0,3979.0,6.501]
[1758817731755,7.412543,3979.7,3979.0,9.01419389]
[1758817731951,0.2149,3980.0,3979.1,2.51310955]
[1758817732152,0.2149,3980.0,3979.0,9.01418432]
[1758817732333,3.59284,3979.9,3979.2,2.5130079]
[1758817732649,3.274436,3979.9,3979.0,7.1879]
[1758817732850,8.79622446,3979.9,3979.0,0.6869]
[1758817733038,8.54033053,3979.8,3979.1,5.249]
[1758817733245,2.11664,3979.7,3979.1,5.249]
[1758817733441,0.001,3980.0,3979.1,7.76211156]
[1758817733629,0.001,3980.0,3978.5,3.20035803]
[1758817733630,2.51268907,3979.8,3978.5,3.20035803]
[1758817733836,2.51290728,3979.5,3978.6,8.88443513]
[1758817734058,13.82596,3979.4,3978.6,8.88443513]
[1758817734364,10.383908,3979.5,3978.7,6.494]
[1758817734531,9.627084,3979.4,3978.8,2.51327372]
[1758817734736,2.51357068,3980.0,3979.0,2.51315315]
[1758817735049,11.43461605,3979.9,3979.0,2.51315315]
[1758817735249,12.3838085,3979.8,3978.9,2.53837678]
[1758817735554,9.663265,3979.7,3979.0,9.00517688]
[1758817735756,9.680454,3979.8,3979.0,6.492]
[1758817735958,2.51276591,3979.7,3979.1,6.491]
[1758817736138,2.274365,3979.6,3979.1,6.491]
[1758817736325,0.2139,3979.8,3979.1,9.0041166]
[1758817736653,3.294094,3979.7,3979.1,9.0041166]
[1758817736856,0.27274707,3979.9,3979.2,0.48213067]
[1758817737064,0.001,3980.0,3979.2,0.457]
[1758817737523,2.489313,3979.9,3979.3,3.689]
[1758817737721,5.869001,3979.9,3979.4,6.488]
[1758817737923,2.547313,3979.8,3979.2,0.1256]
[1758817738157,2.547313,3979.8,3979.3,4.852]
[1758817738464,2.547313,3979.8,3979.4,4.393]
[1758817738626,3.33860962,3979.8,3979.4,4.393]
[1758817738943,9.574813,3979.7,3979.2,0.1256]
[1758817739143,9.742859,3979.6,3979.3,4.216]
[1758817739344,2.154589,3979.5,3979.3,4.216]
[1758817739523,0.1256,3979.9,3979.3,4.216]
[1758817739725,0.1256,3979.9,3979.2,2.2196]
[1758817739726,0.1256,3979.9,3979.4,2.96989658]
[1758817739925,0.1256,3979.9,3979.5,4.389]
[1758817740157,0.001,3980.0,3979.7,2.51271676]
[1758817740335,0.001,3980.0,3979.8,0.15072689]
[1758817740539,0.001,3980.0,3979.9,6.90362594]
[1758817740850,0.001,3980.0,3979.9,7.71612594]
[1758817741055,0.001,3980.0,3979.9,6.8415]
[1758817741223,0.001,3980.0,3979.9,6.6106]
[1758817741735,0.001,3980.0,3979.9,4.391]
[1758817742125,0.001,3980.0,3979.9,4.847]
[1758817742357,0.001,3980.0,3979.9,8.44477594]
[1758817743760,0.001,3980.0,3979.9,5.93215]
[1758817744058,0.001,3980.0,3979.9,0.8125]
[1758817744359,0.001,3980.0,3979.9,6.6076]
[1758817744539,0.001,3980.0,3979.9,0.1256]
[1758817744734,0.001,3980.0,3979.9,4.5136]
[1758817745141,0.001,3980.0,3979.6,2.094]
[1758817745142,6.010816,3980.0,3979.6,2.094]
[1758817745453,12.35326789,3979.9,3979.7,4.387]
[1758817745647,10.640662,3979.8,3979.7,4.387]
[1758817745946,7.691062,3979.8,3979.7,4.387]
[1758817746146,11.681254,3979.8,3979.7,4.387]
[1758817746356,7.173329,3979.8,3979.7,4.387]
[1758817746542,0.001,3980.0,3979.0,2.96187758]
[1758817746742,3.320518,3979.9,3979.2,2.51305328]
[1758817747059,3.320518,3979.9,3979.0,0.76958776]
[1758817747362,2.51274516,3979.8,3979.0,0.4487]
[1758817747567,11.380665,3979.7,3979.0,0.4487]
[1758817747750,10.273491,3979.6,3978.9,2.51320924]
[1758817747955,0.2149,3980.0,3979.1,6.478]
[1758817748261,2.063813,3979.9,3979.1,8.99108461]
[1758817748458,2.063813,3979.9,3979.1,6.478]
[1758817748774,2.063813,3979.9,3979.2,6.477]
[1758817749260,2.063813,3979.9,3979.2,8.99005893]
[1758817749461,7.4049,3980.0,3979.2,8.99005893]
[1758817749667,7.191,3980.0,3979.3,0.4487]
[1758817749851,10.9251611,3980.0,3979.3,0.4487]
[1758817750157,8.41258946,3980.0,3979.3,2.96168882]
[1758817750363,2.01176,3979.9,3979.3,0.4487]
[1758817750929,2.01176,3979.9,3979.2,6.477]
[1758817750930,2.01176,3979.9,3978.6,0.2251]
[1758817751234,2.51314025,3979.1,3978.7,0.214]
[1758817751442,14.03986,3979.0,3978.8,0.214]
[1758817751762,3.516618,3978.9,3978.8,0.214]
[1758817751935,4.490403,3978.9,3978.8,0.214]
[1758817752258,9.634277,3979.2,3978.8,4.377]
[1758817752458,3.397556,3979.1,3978.8,4.377]
[1758817752863,12.37559899,3979.1,3978.8,4.377]
[1758817753037,9.84183,3979.0,3978.2,0.2251]
[1758817753239,9.84183,3979.0,3978.1,2.51372286]
[1758817753438,0.2139,3978.9,3977.6,0.002]
[1758817753639,13.82596,3978.8,3977.6,0.002]
[1758817753835,2.51360524,3978.4,3977.7,3.234]
[1758817754162,13.260984,3978.3,3977.6,0.002]
[1758817754464,13.295993,3978.2,3977.8,4.375]
[1758817754666,13.509893,3978.2,3977.8,4.375]
[1758817754963,11.798478,3978.1,3977.8,4.375]
[1758817755264,0.2139,3978.2,3977.8,4.375]
[1758817755476,0.1256,3978.2,3977.8,4.375]
[1758817755634,6.045304,3978.1,3977.8,4.375]
[1758817755834,2.087304,3978.1,3977.9,4.373]
[1758817756054,2.087304,3978.1,3977.8,2.51395192]
[1758817756267,2.087304,3978.1,3977.9,4.372]
[1758817756445,0.1256,3978.2,3977.9,4.372]
[1758817757337,0.1256,3978.5,3978.0,0.71973826]
[1758817757540,3.251687,3978.4,3978.1,0.6946]
[1758817758065,3.251687,3978.4,3978.2,4.37]
[1758817758232,13.82596,3978.4,3978.2,4.37]
[1758817758657,8.683247,3978.4,3978.2,4.37]
[1758817758861,8.218663,3978.3,3978.2,4.37]
[1758817759055,8.218663,3978.3,3977.8,0.1256]
[1758817759257,8.218663,3978.3,3977.6,2.096]
[1758817759258,2.51376082,3978.2,3977.6,2.096]
[1758817759456,9.682545,3978.1,3977.9,4.369]
[1758817759766,0.1256,3978.1,3977.9,4.368]
[1758817759969,0.1256,3978.1,3977.9,5.0626]
[1758817760470,2.51343382,3978.7,3978.0,0.4695]
[1758817760769,0.1256,3978.5,3978.0,0.4695]
[1758817761059,9.326987,3978.4,3978.0,0.4695]
[1758817761268,0.1256,3978.5,3978.0,0.4695]
[1758817761445,6.798624,3978.4,3978.0,0.4695]
[1758817762064,6.344795,3978.4,3978.0,0.4695]
[1758817762291,6.264795,3978.4,3978.0,0.4695]
[1758817762471,3.038386,3978.4,3978.0,0.6946]
[1758817762677,4.174488,3978.4,3978.0,0.6946]
[1758817762971,4.174488,3978.4,3977.9,4.368]
[1758817763335,4.174488,3978.4,3977.9,6.88188639]
[1758817763532,4.174488,3978.4,3977.9,7.57648639]
[1758817763733,4.174488,3978.4,3977.8,0.1256]
[1758817763966,2.51369144,3978.3,3977.9,4.362]
[1758817764168,16.46530926,3978.2,3977.6,0.002]
[1758817764370,16.46530926,3978.2,3977.7,4.363]
[1758817764371,0.1256,3978.2,3977.7,4.363]
[1758817764867,0.1256,3978.2,3977.8,0.6946]
[1758817765235,0.1256,3978.2,3977.9,0.6946]
[1758817766063,0.1256,3978.2,3978.0,0.6946]
[1758817766270,0.1256,3978.2,3978.1,4.363]
[1758817767182,4.328308,3978.2,3978.1,4.363]
[1758817767382,4.328308,3978.2,3977.6,0.002]
[1758817767383,5.26395566,3978.2,3977.6,0.002]
[1758817767546,9.70377067,3978.1,3977.7,0.123]
[1758817768153,9.70377067,3978.1,3977.6,2.097]
[1758817768154,2.51388923,3977.9,3977.6,0.002]
[1758817768351,8.811002,3977.8,3977.6,0.002]
[1758817768582,7.62589,3977.7,3977.6,0.002]
[1758817768785,0.1256,3977.8,3977.6,0.002]
[1758817768948,3.629553,3977.7,3977.6,0.002]
[1758817769282,6.29903,3977.7,3977.6,0.002]
[1758817769679,13.199339,3977.7,3977.6,0.002]
[1758817769852,15.71335463,3977.7,3977.6,0.002]
[1758817770047,15.71335463,3977.7,3976.2,2.51492709]
[1758817770048,3.435,3977.6,3973.0,0.95179136]
[1758817770251,3.435,3977.6,3974.2,0.6946]
[1758817770252,2.51474631,3976.6,3974.2,0.6946]
[1758817770587,2.51474631,3976.6,3974.3,2.51616357]
[1758817770588,2.51553843,3975.3,3974.3,2.51616357]
[1758817770753,2.51553843,3975.3,3974.2,0.9616]
[1758817770754,8.1353674,3975.2,3974.2,0.6946]
[1758817770953,2.51572327,3975.0,3973.9,0.4695]
[1758817771158,0.6610804,3975.0,3973.9,1.57066419]
[1758817771362,3.02413896,3975.3,3974.4,2.51608727]
[1758817771667,9.803362,3975.2,3974.2,0.4695]
[1758817771986,7.0726134,3975.2,3974.3,4.8441503]
[1758817772197,0.6610804,3975.2,3972.2,2.51743473]
[1758817772420,0.792,3973.6,3973.0,0.44935246]
[1758817772551,2.243008,3973.5,3973.0,0.44935246]
[1758817772754,2.9040884,3973.5,3973.0,0.44935246]
[1758817773000,5.699239,3973.4,3973.0,0.44935246]
[1758817773293,3.600247,3973.3,3973.0,0.44935246]
[1758817773457,4.2613274,3973.3,3973.0,0.44935246]
[1758817773658,3.403941,3973.2,3973.0,0.44935246]
[1758817774151,0.6610804,3974.0,3973.0,0.91885246]
[1758817774370,5.1690804,3974.0,3973.0,0.91885246]
[1758817774570,4.89676504,3973.9,3973.0,0.91885246]
[1758817774783,5.4039,3973.8,3973.0,0.91885246]
[1758817774984,7.92040825,3973.8,3973.0,5.42585246]
[1758817775203,2.09344,3973.7,3973.0,5.42585246]
[1758817775402,3.0,3974.3,3973.1,0.2251]
[1758817775687,3.0,3974.1,3973.1,7.24802332]
[1758817775889,1.28304952,3974.2,3973.4,2.51672734]
[1758817776093,3.198631,3974.1,3973.3,2.9862965]
[1758817776397,0.792,3973.2,3973.0,0.44935246]
[1758817776573,13.19792732,3973.1,3973.0,0.44935246]
[1758817776777,11.69219245,3973.1,3973.0,0.44935246]
[1758817776989,3.51935945,3973.1,3973.0,0.44935246]
[1758817777173,3.64824,3973.3,3973.0,0.44935246]
[1758817777376,4.408861,3973.3,3973.0,0.44935246]
[1758817777576,0.2139,3973.3,3973.0,0.44935246]
[1758817777781,2.51692632,3973.1,3973.0,0.44935246]
[1758817777961,0.2139,3973.3,3973.0,0.44935246]
[1758817778167,3.774974,3973.2,3973.0,0.44935246]
[1758817778368,0.2139,3974.7,3973.0,0.44935246]
[1758817778577,2.45652,3974.1,3973.1,3.2166]
[1758817778777,3.0,3973.9,3973.1,0.2251]
[1758817778983,3.0,3973.7,3973.0,0.44935246]
[1758817779275,2.76198223,3974.1,3973.1,0.4695]
[1758817779498,3.328734,3974.0,3973.1,3.2115227]
[1758817780001,3.328734,3974.0,3973.1,0.6946]
[1758817780188,3.328734,3974.0,3973.1,7.3326]
[1758817780362,0.1256,3973.8,3973.2,0.1256]
[1758817780807,0.2139,3975.0,3973.3,0.6946]
[1758817780967,0.2139,3975.0,3973.6,2.51660763]
[1758817780968,13.280206,3974.9,3973.6,2.51660763]
[1758817781186,15.79600627,3974.9,3973.6,2.95570763]
[1758817781416,15.79600627,3974.9,3973.7,2.51654189]
[1758817781417,2.51596237,3974.7,3973.7,2.51654189]
[1758817781607,13.776932,3974.8,3973.6,0.4391]
[1758817781608,6.79786394,3974.6,3973.6,2.95567108]
[1758817781798,4.286001,3974.5,3973.7,2.51650113]
[1758817782197,3.654026,3974.5,3973.8,2.51648087]
[1758817782383,2.72967857,3975.0,3973.6,7.0751]
[1758817782589,0.78786343,3974.9,3974.0,2.51629977]
[1758817782917,14.61796,3974.0,3973.0,0.44935246]
[1758817783119,2.5166198,3973.6,3973.0,0.44935246]
[1758817783318,3.4253,3973.5,3973.0,0.44935246]
[1758817783623,3.0,3973.8,3973.0,0.44935246]
[1758817783624,2.193116,3973.4,3973.0,0.44935246]
[1758817783825,2.51661875,3973.6,3973.0,0.44935246]
[1758817784027,16.34257207,3973.6,3973.0,0.44935246]
[1758817784187,9.828035,3973.5,3973.0,0.44935246]
[1758817784387,0.792,3973.7,3973.0,0.54935246]
[1758817784588,2.837467,3973.6,3973.0,0.54935246]
[1758817784858,7.76497066,3973.5,3973.0,0.54935246]
[1758817785132,2.901387,3973.4,3973.0,0.54935246]
[1758817785629,2.230715,3973.4,3973.0,0.54935246]
[1758817785932,3.0,3973.8,3973.0,1.23265246]
[1758817786142,0.1026,3974.7,3973.3,2.51679741]
[1758817786322,7.700275,3974.4,3973.4,3.1980318]
[1758817786497,5.51600712,3974.6,3973.5,0.2422]
[1758817786697,11.383516,3974.6,3973.6,0.4391]
[1758817786901,4.302124,3974.6,3973.8,2.51647576]
[1758817787116,4.226974,3974.5,3973.9,0.6813]
[1758817787336,2.51572327,3975.0,3973.9,3.19769283]
[1758817787540,0.63197771,3975.4,3974.0,5.26746356]
[1758817787843,2.5158394,3974.9,3974.1,6.8992]
[1758817787995,2.656068,3974.8,3974.0,4.9981]
[1758817788325,2.51578557,3975.0,3974.0,4.9981]
[1758817788678,2.51578557,3975.0,3973.7,2.51654453]
[1758817788679,2.51592143,3974.7,3973.7,0.4391]
[1758817788876,9.43905417,3974.6,3973.8,4.56]
[1758817789079,0.4795068,3974.8,3973.6,0.2422]
[1758817789237,2.5161601,3974.4,3973.7,2.971]
[1758817789580,2.51624228,3974.2,3973.2,0.6813]
[1758817789731,3.068302,3974.1,3973.2,3.19810151]
[1758817789933,0.4795068,3974.8,3973.3,9.1717824]
[1758817790132,13.82596,3974.7,3973.3,9.1717824]
[1758817790332,2.51616823,3974.3,3973.3,9.1717824]
[1758817790533,6.630561,3974.2,3973.3,6.655]
[1758817790878,0.1256,3974.1,3973.4,0.1256]
[1758817791080,0.1256,3974.1,3973.4,2.88453424]
[1758817791288,3.27,3974.0,3973.4,0.3678]
[1758817791685,4.12,3974.0,3973.5,4.552]
[1758817791982,0.1256,3974.1,3973.6,0.6813]
[1758817792282,0.1256,3974.1,3973.7,0.6813]
[1758817792642,0.1256,3974.1,3973.8,0.6813]
[1758817793074,0.1256,3974.1,3973.9,0.6813]
[1758817793454,0.1256,3974.1,3974.0,0.6813]
[1758817794257,0.1256,3974.3,3974.0,0.6813]
[1758817794468,0.1256,3974.3,3974.1,0.6813]
[1758817795188,0.1256,3974.3,3973.7,4.548]
[1758817795189,0.1256,3974.3,3973.9,0.02516419]
[1758817795397,2.3109,3975.6,3974.2,0.6813]
[1758817795691,0.1256,3975.1,3974.6,2.51595693]
[1758817795895,0.1256,3975.1,3974.7,0.26735913]
[1758817796060,0.1256,3975.1,3974.8,4.541]
[1758817796282,7.636205,3975.0,3974.7,4.541]
[1758817796798,8.66394946,3975.0,3974.1,0.6813]
[1758817796975,1.02774446,3975.0,3974.2,7.18180623]
[1758817797180,0.1256,3975.1,3974.3,4.13725579]
[1758817797377,0.1256,3975.1,3974.4,4.539]
[1758817797712,0.1256,3975.1,3974.4,4.7812]
[1758817797882,0.1256,3975.1,3974.5,0.1256]
[1758817798885,0.1256,3975.1,3974.5,4.6626]
[1758817799920,2.64083226,3975.8,3975.0,0.1256]
[1758817800096,4.473615,3975.7,3975.0,4.6586]
[1758817800405,0.1256,3975.8,3975.1,2.51565653]
[1758817800571,0.1256,3975.8,3975.4,2.51546345]
[1758817800773,0.1256,3976.2,3975.5,0.02515406]
[1758817800964,0.1256,3976.2,3975.7,2.51525266]
[1758817801170,0.1256,3976.2,3975.8,0.6813]
[1758817801573,13.82596,3976.1,3975.5,0.1256]
[1758817801806,4.059746,3976.1,3975.7,4.532]
[1758817802109,16.55495633,3976.0,3974.9,0.2422]
[1758817802298,2.5154726,3975.4,3974.4,2.75827792]
[1758817802493,2.51536861,3975.6,3974.6,2.51596917]
[1758817802708,2.190755,3975.5,3974.5,2.4603]
[1758817802897,7.987171,3975.8,3974.5,0.6813]
[1758817803207,5.644306,3974.5,3974.1,0.2319]
[1758817803410,2.51583969,3974.9,3973.4,0.4714]
[1758817803578,11.104544,3974.8,3973.8,2.51645233]
[1758817803776,11.104544,3974.8,3973.6,2.51659804]
[1758817803777,2.51598802,3974.6,3973.6,2.51659804]
[1758817803978,5.664602,3974.5,3973.5,4.529]
[1758817804194,2.51615568,3974.4,3973.5,4.529]
[1758817804478,2.51615568,3974.4,3973.5,7.04567199]
[1758817804877,8.43893,3974.3,3973.4,0.7033]
[1758817805176,2.51628464,3974.2,3973.4,1.038]
[1758817805388,4.513128,3974.1,3973.4,1.038]
[1758817805590,4.386128,3974.0,3973.4,3.78663464]
[1758817805911,2.51611499,3974.4,3973.4,3.78663464]
[1758817806213,2.51629261,3974.2,3973.4,1.2699]
[1758817806413,4.270671,3974.1,3973.4,3.78661751]
[1758817806706,2.51630418,3974.1,3973.4,1.2699]
[1758817806899,4.052218,3974.0,3973.4,1.2699]
[1758817807098,5.007035,3974.1,3973.4,1.2699]
[1758817807274,4.696339,3974.2,3973.3,0.4714]
[1758817807479,2.51639187,3974.0,3973.3,4.9914]
[1758817807711,0.6700232,3974.2,3973.3,7.50814849]
[1758817807916,2.51618147,3974.3,3973.3,7.50814849]
[1758817808119,2.51616738,3974.3,3973.5,2.51666991]
[1758817808313,2.51623517,3974.2,3973.4,4.517]
[1758817808516,0.2139,3974.4,3973.6,2.51660377]
[1758817808817,6.34251106,3974.3,3973.5,2.51665272]
[1758817809030,0.001,3974.9,3973.6,0.72846609]
[1758817809225,6.97817,3974.8,3973.6,0.7033]
[1758817809438,6.97817,3974.8,3973.7,0.7033]
[1758817809586,6.97817,3974.8,3973.8,0.2319]
[1758817809929,2.51608166,3974.5,3973.4,0.2319]
[1758817810089,8.119451,3974.4,3973.7,4.7459]
[1758817810285,3.338079,3974.3,3973.7,7.26243067]
[1758817810479,0.697917,3974.7,3973.7,7.26243067]
[1758817810480,2.511396,3974.5,3973.8,2.51648296]
[1758817810685,0.001,3974.9,3973.9,0.72846419]
[1758817810916,0.001,3974.9,3974.7,2.5158721]
[1758817811092,0.001,3974.9,3974.0,0.52424642]
[1758817811093,0.001,3974.9,3974.8,2.51584985]
[1758817811301,0.001,3974.9,3974.8,7.02684985]
[1758817811479,0.001,3974.9,3974.8,7.72274985]
[1758817812225,0.001,3974.9,3974.8,7.84834985]
[1758817812386,0.001,3974.9,3974.8,5.3325]
[1758817812586,13.82696,3974.9,3974.4,2.51607594]
[1758817812786,0.001,3974.9,3974.4,5.2049]
[1758817813185,0.001,3974.9,3974.6,2.51594674]
[1758817813385,0.001,3974.9,3974.8,2.51584985]
[1758817813918,0.001,3974.9,3974.8,3.21174985]
[1758817814118,0.001,3974.9,3974.8,0.6959]
[1758817814316,0.001,3974.9,3974.7,7.02585158]
[1758817814514,0.001,3974.9,3974.8,3.21174985]
[1758817815437,0.001,3974.9,3974.8,4.26068033]
[1758817815620,0.001,3974.9,3974.8,10.86568033]
[1758817815797,0.001,3974.9,3974.8,10.84052184]
[1758817817028,0.001,3974.9,3974.8,10.84252184]
[1758817817331,0.001,3974.9,3974.8,10.84152184]
[1758817817531,0.001,3974.9,3974.8,8.74352184]
[1758817817705,0.001,3974.9,3974.8,3.21174985]
[1758817817906,0.001,3974.9,3974.8,2.51584985]
[1758817818120,0.001,3974.9,3974.8,7.71974985]
[1758817821207,0.001,3974.9,3974.8,10.71974985]
[1758817821731,7.19,3976.5,3976.4,2.51483754]
[1758817821895,7.19,3977.3,3976.5,2.51476306]
[1758817822099,9.7042689,3977.3,3976.5,2.51476306]
[1758817822408,9.7042689,3977.3,3976.4,4.5]
[1758817822409,7.19,3977.3,3976.4,4.5]
[1758817822612,7.19,3977.4,3976.9,2.51446236]
[1758817822936,0.2139,3977.3,3976.8,0.1256]
[1758817823122,10.714606,3977.2,3976.8,1.928]
[1758817823326,2.192646,3977.1,3976.8,1.928]
[1758817823526,0.1256,3977.3,3976.8,1.928]
[1758817823928,7.3156,3977.5,3977.0,2.5144085]
[1758817824125,7.3156,3977.5,3977.2,2.51433169]
[1758817824435,7.3156,3977.5,3977.3,2.51426614]
[1758817824736,0.001,3977.7,3977.4,2.51420525]
[1758817824937,0.2149,3977.7,3976.4,0.6959]
[1758817825252,0.001,3977.3,3976.7,2.51460317]
[1758817825416,0.001,3977.3,3976.7,2.51463358]
[1758817825753,0.001,3977.3,3976.8,2.51457648]
[1758817826047,0.001,3977.3,3976.9,7.00851604]
[1758817826334,0.001,3977.3,3977.0,7.00943674]
[1758817826535,0.001,3977.3,3976.5,2.51471205]
[1758817826736,8.301296,3977.2,3976.6,4.495]
[1758817826914,3.964665,3977.2,3976.6,4.495]
[1758817827235,0.001,3977.3,3976.7,2.51464782]
[1758817827439,0.001,3977.3,3977.0,2.51443778]
[1758817827808,0.001,3977.3,3976.9,2.5145051]
[1758817828009,0.001,3977.3,3977.0,0.02514458]
[1758817828244,0.001,3977.3,3977.2,2.51433169]
[1758817828444,0.001,3977.3,3977.2,7.00633169]
[1758817828602,0.001,3977.3,3977.2,7.70223169]
[1758817829129,0.001,3977.3,3977.2,9.79823169]
[1758817829951,0.001,3977.3,3977.2,12.79823169]
[1758817830194,0.001,3977.3,3977.2,14.39682726]
[1758817831470,0.001,3977.3,3977.2,7.81182726]
[1758817831641,0.001,3977.3,3977.2,14.39482726]
[1758817832854,0.001,3977.3,3977.2,14.38882726]
[1758817834572,0.001,3977.3,3977.2,14.51442726]